fUSD/lending_fUSD_20260225
["ID","MTS","AMOUNT","RATE_DAILY","PERIOD"]
[406671568,1772058641784,-433.231877,0.00017981,2]
[406671569,1772058641794,-433.231877,0.00017981,2]
[406671570,1772058641804,-433.231877,0.00017981,2]
[406671571,1772058641813,-433.231877,0.00017981,2]
[406671572,1772058641823,-151.0,0.00017981,2]
[406671573,1772058641832,-151.0,0.00017981,2]
[406671574,1772058641842,-151.0,0.00017981,2]
[406671575,1772058641851,-1594.275168,0.00017981,2]
[406671576,1772058641861,-151.0,0.00017981,2]
[406671577,1772058641870,-282.618216,0.00017981,2]
[406671578,1772058641880,-282.618216,0.00017981,2]
[406671579,1772058641890,-282.618216,0.00017981,2]
[406671580,1772058641900,-282.618216,0.00017981,2]
[406671581,1772058641909,-173.256273,0.00017981,2]
[406671582,1772058641919,-387.37908692,0.00017992,2]
[406671583,1772058641929,-200.0,0.00017999,2]
[406671584,1772058641939,-300.0,0.00017999,2]
[406671585,1772058641949,-155.0,0.00017999,2]
[406671586,1772058641958,-300.0,0.00017999,2]
[406671587,1772058641968,-1492.88858354,0.00017999,2]
[406671588,1772058641977,-300.0,0.00017999,2]
[406671589,1772058641986,-379.38237266,0.00017999,2]
[406671590,1772058641995,-150.0,0.00018,2]
[406671591,1772058642004,-1296.47,0.00018,2]
[406671592,1772058642013,-920.0,0.00018,2]
[406671593,1772058642023,-1219.12,0.00018,2]
[406671594,1772058642033,-3497.0,0.00018,2]
[406671595,1772058642043,-5982.0,0.00018,2]
[406671596,1772058642052,-149057.42158794,0.00018,2]
[406671597,1772058642079,-2861.55719623,0.00018,2]
[406671613,1772058642666,-1794.4884,0.00013985,2]
[406671674,1772058645221,-370.45,0.00013985,2]
[406671675,1772058645286,-1054.05658598,0.00013985,2]
[406671676,1772058645297,-495.09372085,0.00017891,2]
[406671677,1772058645308,-330.15551753,0.00017891,2]
[406671678,1772058645346,-578.30964555,0.00017891,2]
[406671679,1772058645359,-320.83083494,0.00017891,2]
[406671680,1772058645375,-310.24327575,0.00017891,2]
[406671681,1772058645385,-60.85172425,0.00017994,2]
[406671682,1772058645589,-240.6151435,0.00017994,2]
[406671683,1772058645599,-2456.0,0.00018,2]
[406671684,1772058645608,-111.06784158,0.00018,2]
[406671685,1772058645620,-1028.73033201,0.00018,2]
[406671702,1772059180611,300.0,8.8e-05,3]
[406671703,1772059182635,700.0,8.9e-05,3]
[406671704,1772059184722,1000.0,9e-05,3]
[406671929,1772059831592,-300.0,8.126e-05,2]
[406671930,1772059831606,-1170.07670614,8.126e-05,2]
[406671931,1772059831626,-29.92329386,8.126e-05,2]
[406671932,1772059831651,-218.0,8.126e-05,2]
[406671933,1772059831671,-250.0,8.126e-05,2]
[406671934,1772059831685,-1268.99752456,8.127e-05,2]
[406671935,1772059831703,-3725.0118591,8.127e-05,2]
[406671936,1772059831728,-704.57304315,8.127e-05,2]
[406671937,1772059831744,-34301.45757319,8.127e-05,2]
[406671938,1772059831756,-500.0,8.227e-05,2]
[406671939,1772059831771,-500.0,8.29e-05,2]
[406671941,1772059831784,-500.0,8.29e-05,2]
[406671944,1772059831798,-250.0,8.464e-05,2]
[406671947,1772059831820,-2500.0,8.464e-05,2]
[406671949,1772059831835,-2500.0,8.464e-05,2]
[406671950,1772059831854,-2500.0,8.464e-05,2]
[406671953,1772059831869,-150.0,8.889e-05,2]
[406671955,1772059831883,-4132.8248,8.89e-05,2]
[406671958,1772059831898,-89527.5151,8.89e-05,2]
[406671959,1772059831912,-6743.6302,8.89e-05,2]
[406671960,1772059831927,-2500.0,8.939e-05,2]
[406671961,1772059831942,-500.0,8.939e-05,2]
[406671962,1772059831961,-250.0,8.939e-05,2]
[406671963,1772059831974,-2500.0,8.939e-05,2]
[406671964,1772059831988,-500.0,8.939e-05,2]
[406671965,1772059832002,-2500.0,8.989e-05,2]
[406671966,1772059832017,-8012.8245,8.99e-05,2]
[406671967,1772059832031,-736.0,9.068e-05,2]
[406671968,1772059832049,-32879.9337,9.19e-05,2]
[406671969,1772059832063,-380.92,9.19e-05,2]
[406671970,1772059832076,-150.99,9.19e-05,2]
[406671971,1772059832090,-150.99,9.19e-05,2]
[406671972,1772059832104,-9999.99,9.19e-05,2]
[406671973,1772059832118,-299.99,9.19e-05,2]
[406671974,1772059832131,-500.0,0.0001,2]
[406671975,1772059832146,-500.0,0.0001,2]
[406671976,1772059832159,-500.0,0.0001,2]
[406671977,1772059832173,-500.0,0.0001,2]
[406671978,1772059832186,-151.0,0.0001,2]
[406671979,1772059832200,-151.0,0.0001,2]
[406671980,1772059832213,-151.0,0.0001,2]
[406671981,1772059832228,-151.0,0.0001,2]
[406671982,1772059832242,-151.0,0.0001,2]
[406671983,1772059832255,-151.0,0.0001,2]
[406671984,1772059832268,-151.0,0.0001,2]
[406671985,1772059832281,-151.0,0.0001,2]
[406671986,1772059832294,-151.0,0.0001,2]
[406671987,1772059832308,-153.74158134,0.0001,2]
[406671988,1772059832321,-208.83441735,0.00010246,2]
[406671989,1772059832335,-250.0,0.00010737,2]
[406671990,1772059832347,-500.0,0.00011099,2]
[406671991,1772059832360,-4527.76566268,0.00011099,2]
[406671992,1772059832374,-4527.76566261,0.00011099,2]
[406671993,1772059832387,-4527.76566261,0.00011099,2]
[406671994,1772059832400,-168.69,0.00011482,2]
[406671995,1772059832413,-4527.76566261,0.00011893,2]
[406671996,1772059832427,-298.7,0.00012186,2]
[406671997,1772059832441,-168.69,0.00012302,2]
[406671998,1772059832456,-4527.76566261,0.00012894,2]
[406671999,1772059832470,-168.69,0.00013122,2]
[406672000,1772059832483,-298.7,0.00013405,2]
[406672001,1772059832497,-166.66,0.00013577,2]
[406672002,1772059832510,-500.0,0.00013698,2]
[406672003,1772059832523,-500.0,0.00013698,2]
[406672004,1772059832535,-500.0,0.00013698,2]
[406672005,1772059832548,-500.0,0.00013698,2]
[406672006,1772059832561,-500.0,0.00013698,2]
[406672007,1772059832573,-500.0,0.00013698,2]
[406672008,1772059832596,-500.0,0.00013698,2]
[406672009,1772059832615,-500.0,0.00013698,2]
[406672010,1772059832633,-500.0,0.00013698,2]
[406672011,1772059832652,-384.80531288,0.00013698,2]
[406672012,1772059832671,-172.10662643,0.00013699,2]
[406672013,1772059832681,-500.0,0.00013699,2]
[406672014,1772059832690,-500.0,0.00013699,2]
[406672015,1772059832702,-166.66,0.00013863,2]
[406672016,1772059832717,-4527.76566261,0.00013896,2]
[406672017,1772059832975,-168.69,0.00013942,2]
[406672018,1772059832993,-166.66,0.00014149,2]
[406672019,1772059833003,-166.66,0.00014435,2]
[406672020,1772059833013,-25314.65,0.00014527,2]
[406672021,1772059833022,-7517.58,0.00014563,2]
[406672022,1772059833033,-298.7,0.00014624,2]
[406672023,1772059833043,-37901.47,0.00014688,2]
[406672024,1772059833053,-166.66,0.0001472,2]
[406672025,1772059833066,-168.69,0.00014762,2]
[406672026,1772059833076,-507.0,0.0001489,2]
[406672027,1772059833086,-4527.76566261,0.00014897,2]
[406672028,1772059833095,-1000.0,0.00014919,2]
[406672029,1772059833104,-160.0,0.00014974,2]
[406672030,1772059833114,-173.91437885,0.00014974,2]
[406672031,1772059833124,-212.00239617,0.00015,2]
[406672032,1772059833399,-37.99760383,0.00015,2]
[406672033,1772059833409,-166.66,0.00015006,2]
[406672034,1772059833418,-796.45878564,0.0001531,2]
[406672035,1772059833433,-442.20546285,0.0001531,2]
[406672036,1772059833447,-305.73575151,0.0001531,2]
[406672037,1772059833457,-150.0,0.00015351,2]
[406672038,1772059833466,-168.69,0.00015583,2]
[406672039,1772059833475,-160.11879411,0.00015842,2]
[406672040,1772059833486,-138.58120589,0.00015842,2]
[406672041,1772059833496,-148.48311129,0.00015898,2]
[406672042,1772059833507,-1555.22270265,0.00015898,2]
[406672044,1772059837670,-793.66649967,0.00015898,2]
[406672045,1772059837731,-2030.393349,0.00015898,2]
[406672046,1772059837744,-500.0,0.00016356,2]
[406672047,1772059837758,-500.0,0.00016356,2]
[406672048,1772059837768,-168.69,0.00016403,2]
[406672049,1772059837778,-788.7,0.00016438,2]
[406672050,1772059837788,-1000.0,0.00016438,2]
[406672051,1772059837797,-507.0,0.0001665,3]
[406672052,1772059837807,-350.83226853,0.00016712,2]
[406672053,1772059837818,-437.86773147,0.00016712,2]
[406672055,1772059837828,-978.53261853,0.00016712,2]
[406672057,1772059837839,-21.46738147,0.00016712,2]
[406672059,1772059837848,-424.80248905,0.0001672,2]
[406672195,1772059839855,-419.19751095,0.0001672,2]
[406672196,1772059839864,-160.0,0.0001672,2]
[406672197,1772059839874,-1000.0,0.00016784,2]
[406672198,1772059839883,-4527.76566261,0.00016899,2]
[406672199,1772059839892,-200.0,0.000169,6]
[406672200,1772059839902,-788.7,0.00016986,2]
[406672201,1772059839911,-1999.0,0.00016986,2]
[406672202,1772059839921,-500.0,0.00017,7]
[406672203,1772059839930,-500.0,0.00017,7]
[406672204,1772059839939,-500.0,0.00017,7]
[406672205,1772059839948,-500.0,0.00017,7]
[406672206,1772059839960,-162.78,0.00017,7]
[406672207,1772059839970,-300.0,0.00017,2]
[406672208,1772059839979,-500.0,0.00017,6]
[406672209,1772059839988,-3037.80044663,0.00017047,2]
[406672210,1772059839997,-298.7,0.00017061,2]
[406672211,1772059840006,-350.04115682,0.00017099,2]
[406672212,1772059840015,-500.0,0.00017099,2]
[406672213,1772059840025,-500.0,0.00017099,2]
[406672214,1772059840034,-500.0,0.00017099,2]
[406672215,1772059840043,-500.0,0.00017099,2]
[406672216,1772059840056,-500.0,0.00017099,2]
[406672217,1772059840065,-500.0,0.00017099,2]
[406672218,1772059840074,-693.3919763,0.00017099,2]
[406672219,1772059840084,-500.0,0.00017099,2]
[406672220,1772059840093,-500.0,0.00017099,2]
[406672221,1772059840102,-500.0,0.00017099,2]
[406672222,1772059840111,-500.0,0.00017099,2]
[406672223,1772059840121,-500.0,0.00017099,2]
[406672224,1772059840129,-500.0,0.00017099,2]
[406672225,1772059840139,-500.0,0.00017099,2]
[406672226,1772059840148,-500.0,0.00017099,2]
[406672227,1772059840157,-500.0,0.00017099,2]
[406672228,1772059840166,-500.0,0.00017099,2]
[406672229,1772059840176,-500.0,0.00017099,2]
[406672230,1772059840185,-500.0,0.00017099,2]
[406672231,1772059840194,-484.51217363,0.00017099,2]
[406672232,1772059840206,-700.0,0.000171,6]
[406672233,1772059840216,-719.04747942,0.00017154,2]
[406672234,1772059840225,-3037.80044663,0.00017189,2]
[406672235,1772059840234,-1000.0,0.000172,6]
[406672236,1772059840245,-745.65223616,0.00017209,2]
[406672237,1772059840255,-168.69,0.00017223,2]
[406672238,1772059840265,-788.7,0.0001726,2]
[406672239,1772059840275,-1485.0,0.0001726,2]
[406672240,1772059840285,-350.0,0.00017261,3]
[406672241,1772059840295,-773.2413689,0.00017264,2]
[406672242,1772059840305,-312.0,0.00017268,2]
[406672243,1772059840314,-350.0,0.00017292,2]
[406672244,1772059840324,-1200.0,0.000173,6]
[406672245,1772059840333,-801.85129955,0.00017319,2]
[406672246,1772059840343,-3037.80044663,0.00017331,2]
[406672247,1772059840353,-471.69,0.00017339,2]
[406672248,1772059840363,-312.0,0.00017357,2]
[406672249,1772059840372,-831.51979763,0.00017374,2]
[406672250,1772059840382,-312.0,0.00017375,2]
[406672251,1772059840392,-200.0,0.000174,6]
[406672252,1772059840402,-862.28603014,0.00017429,2]
[406672253,1772059840413,-3037.80044663,0.00017473,2]
[406672254,1772059840423,-538.64,0.000175,2]
[406672255,1772059840434,-2202.823,0.000175,2]
[406672256,1772059840456,-159.018,0.000175,2]
[406672257,1772059840476,-200.0,0.000175,6]
[406672258,1772059840500,-788.7,0.00017534,2]
[406672259,1772059840522,-312.0,0.00017593,2]
[406672260,1772059840544,-967.17,0.00017593,2]
[406672261,1772059840566,-967.17,0.00017593,2]
[406672262,1772059840586,-967.17,0.00017593,2]
[406672263,1772059840609,-1394.15,0.00017593,2]
[406672264,1772059840632,-200.0,0.000176,6]
[406672265,1772059840655,-3037.80044663,0.00017616,2]
[406672266,1772059840677,-312.0,0.00017632,2]
[406672268,1772059840699,-1150.21812351,0.0001764,2]
[406672270,1772059840723,-200.0,0.000177,6]
[406672271,1772059840745,-3037.80044663,0.00017758,2]
[406672272,1772059840766,-312.0,0.00017795,2]
[406672273,1772059840788,-10000.0,0.000178,2]
[406672274,1772059840810,-2567.10318932,0.000178,2]
[406672275,1772059840832,-5000.0,0.000178,2]
[406672276,1772059840853,-621.0,0.000178,6]
[406672277,1772059840876,-788.7,0.00017808,2]
[406672278,1772059840890,-150.0,0.00017808,2]
[406672279,1772059840901,-2567.10318927,0.00017817,2]
[406672280,1772059840911,-810.62472783,0.0001782,10]
[406672281,1772059840921,-981.11936,0.0001782,2]
[406672282,1772059840931,-981.11936,0.0001782,2]
[406672283,1772059840941,-12990.36315735,0.0001782,2]
[406672284,1772059840953,-2568.50969261,0.0001783,2]
[406672285,1772059840963,-2567.10318927,0.00017833,2]
[406672286,1772059840972,-12990.36315735,0.0001784,2]
[406672287,1772059840983,-2567.10318927,0.0001785,2]
[406672288,1772059840993,-2571.03746549,0.0001785,2]
[406672289,1772059841002,-15982.02222209,0.0001785,2]
[406672290,1772059841013,-201.59337924,0.0001785,3]
[406672291,1772059841175,-420.71607381,0.0001785,2]
[406672292,1772059841189,-1521.20783274,0.0001785,2]
[406672293,1772059841198,-200.0,0.00017856,2]
[406672294,1772059841210,-12990.36315735,0.0001786,2]
[406672295,1772059841220,-150.0,0.00017863,2]
[406672296,1772059841231,-312.0,0.00017863,2]
[406672297,1772059841240,-2567.10318927,0.00017867,2]
[406672298,1772059841250,-2571.03746548,0.00017875,2]
[406672299,1772059841259,-15982.02222209,0.00017875,2]
[406672300,1772059841269,-201.59337924,0.00017875,3]
[406672301,1772059841278,-420.71607379,0.00017875,2]
[406672302,1772059841288,-1521.20783272,0.00017875,2]
[406672303,1772059841297,-12990.36315735,0.0001788,2]
[406672304,1772059841307,-2567.10318927,0.00017883,2]
[406672305,1772059841316,-219.34430843,0.0001789,2]
[406672306,1772059841325,-8458.0,0.000179,2]
[406672307,1772059841335,-1500000.0,0.000179,2]
[406672308,1772059841345,-10183.0151,0.000179,2]
[406672309,1772059841355,-1000.0,0.000179,2]
[406672310,1772059841365,-961.64168307,0.000179,3]
[406672311,1772059841374,-3037.80044663,0.000179,2]
[406672312,1772059841384,-4527.76566261,0.000179,2]
[406672313,1772059841393,-2567.10318927,0.000179,2]
[406672314,1772059841403,-2571.03746548,0.000179,2]
[406672315,1772059841412,-12990.36315735,0.000179,2]
[406672316,1772059841423,-15982.02222209,0.000179,2]
[406672317,1772059841433,-201.59337924,0.000179,3]
[406672318,1772059841443,-420.71607379,0.000179,2]
[406672319,1772059841453,-150.0,0.00017918,2]
[406672320,1772059841463,-471.69,0.00017918,2]
[406672321,1772059841472,-312.0,0.00017927,2]
[406672322,1772059841482,-123692.2926462,0.0001795,2]
[406672323,1772059841491,-666941.2401455,0.0001795,2]
[406672324,1772059841501,-8099.2564152,0.0001795,2]
[406672325,1772059841511,-142329.5927757,0.0001795,2]
[406672326,1772059841520,-151.0,0.0001795,2]
[406672327,1772059841530,-151.0,0.0001795,2]
[406672328,1772059841540,-151.0,0.0001795,2]
[406672329,1772059841550,-151.0,0.0001795,2]
[406672330,1772059841560,-41006.481199,0.0001795,2]
[406672331,1772059841569,-151.0,0.0001795,2]
[406672332,1772059841579,-151.0,0.0001795,2]
[406672333,1772059841588,-151.0,0.0001795,2]
[406672334,1772059841598,-151.0,0.0001795,2]
[406672335,1772059841608,-151.0,0.0001795,2]
[406672336,1772059841618,-6074.4423113,0.0001795,2]
[406672337,1772059841627,-181924.650143,0.0001795,2]
[406672338,1772059841637,-14465.9534013,0.0001795,2]
[406672339,1772059841648,-150.0,0.00017972,2]
[406672340,1772059841663,-508.88286319,0.00017982,2]
[406672341,1772059841684,-387.37908692,0.0001799,2]
[406672342,1772059841710,-219.34430843,0.0001799,2]
[406672343,1772059841733,-155.0,0.00017999,2]
[406672344,1772059841759,-1492.88858354,0.00017999,2]
[406672345,1772059841782,-300.0,0.00017999,2]
[406672346,1772059841806,-379.38237266,0.00017999,2]
[406672347,1772059841828,-300.0,0.00017999,2]
[406672348,1772059841854,-162.921,0.00018,2]
[406672349,1772059841876,-1063.963,0.00018,2]
[406672350,1772059841901,-634.479,0.00018,2]
[406672351,1772059841924,-3497.0,0.00018,2]
[406672352,1772059841947,-1340.0,0.00018,2]
[406672353,1772059841972,-150.0,0.00018,2]
[406672354,1772059841993,-1296.47,0.00018,2]
[406672355,1772059842015,-4572.0,0.00018,2]
[406672356,1772059842036,-413.0,0.00018,2]
[406672357,1772059842060,-2793145.71170568,0.00018,2]
[406672365,1772059843301,-185.58482038,0.000179,2]
[406672366,1772059843331,-1335.62301234,0.000179,2]
[406672368,1772059843357,-5982.0,0.00018,2]
[406672370,1772059843383,-142539.37328651,0.00018,2]
[406672397,1772059843651,-77566.46571501,0.00018,2]
[406672400,1772059843665,-1323.95192,0.00018,2]
[406672404,1772059843688,-6166.53322885,0.00018,2]
[406672406,1772059843700,-4535.17675864,0.00018,2]
[406672408,1772059843716,-665.46324136,0.00018,2]
[406672434,1772059845383,-10476.70578017,0.00018,2]
[406672436,1772059845395,-6771.11083968,0.00018,2]
[406672439,1772059845443,-678.21,0.00018,2]
[406672440,1772059845506,-9371.63782977,0.00018,2]
[406672446,1772059908363,300.0,9e-05,3]
[406672447,1772060071819,300.0,8.9e-05,3]
[406672448,1772060073906,600.0,9e-05,3]
[406672449,1772060138537,800.0,8.9e-05,3]
[406672450,1772060140625,1600.0,9e-05,3]
[406672451,1772060198797,600.0,8.9e-05,3]
[406672452,1772060200897,1200.0,9e-05,3]
[406672453,1772060242800,400.0,8.9e-05,3]
[406672454,1772060244909,900.0,9e-05,3]
[406672455,1772060282418,500.0,8.7e-05,3]
[406672456,1772060284504,1100.0,8.8e-05,3]
[406672457,1772060286621,1700.0,8.9e-05,3]
[406672458,1772060288717,2200.0,9e-05,3]
[406672477,1772060663996,160.0,4.755e-05,2]
[406672478,1772060664208,160.0,5.188e-05,2]
[406672479,1772060664431,160.0,5.62e-05,2]
[406672480,1772060664643,160.0,6.052e-05,2]
[406672481,1772060664840,160.0,6.484e-05,2]
[406672482,1772060689223,177.0,0.0001789,120]
[406672483,1772060696599,222.0,0.0001789,120]
[406672638,1772060851537,1282.00532396,8.9e-05,3]
[406672817,1772061031872,-160.0,6.917e-05,2]
[406672819,1772061031882,-209.0,6.917e-05,2]
[406672820,1772061031892,-250.0,7.133e-05,2]
[406672822,1772061031901,-160.0,7.349e-05,2]
[406672823,1772061031910,-250.0,7.608e-05,2]
[406672824,1772061031920,-250.0,7.608e-05,2]
[406672825,1772061031930,-160.0,7.781e-05,2]
[406672826,1772061031940,-166.66,8.196e-05,2]
[406672827,1772061031949,-160.0,8.214e-05,2]
[406672828,1772061031959,-166.66,8.467e-05,2]
[406672829,1772061031968,-300.0,8.512e-05,2]
[406672830,1772061031978,-300.0,8.512e-05,2]
[406672831,1772061031989,-1200.0,8.512e-05,2]
[406672832,1772061031999,-1033.90731746,8.513e-05,2]
[406672833,1772061032009,-150.0,8.513e-05,2]
[406672834,1772061032018,-155.0,8.514e-05,2]
[406672835,1772061032028,-222.0,8.514e-05,2]
[406672836,1772061032037,-500.0,8.514e-05,2]
[406672837,1772061032047,-966.6554,8.514e-05,2]
[406672838,1772061032057,-500.0,8.514e-05,2]
[406672839,1772061032067,-500.0,8.514e-05,2]
[406672840,1772061032078,-500.0,8.514e-05,2]
[406672841,1772061032090,-500.0,8.514e-05,2]
[406672842,1772061032101,-500.0,8.514e-05,2]
[406672843,1772061032111,-500.0,8.514e-05,2]
[406672844,1772061032122,-500.0,8.514e-05,2]
[406672845,1772061032134,-500.0,8.514e-05,2]
[406672846,1772061032144,-204.15903203,8.514e-05,2]
[406672847,1772061032330,-9999.99,8.514e-05,2]
[406672848,1772061032342,-150.99,8.514e-05,2]
[406672849,1772061032352,-299.99,8.514e-05,2]
[406672850,1772061032361,-150.99,8.542e-05,2]
[406672851,1772061032372,-1033.90731745,8.552e-05,2]
[406672852,1772061032381,-159.018,8.578e-05,2]
[406672853,1772061032391,-2202.823,8.578e-05,2]
[406672854,1772061032400,-2500.0,8.59e-05,2]
[406672855,1772061032410,-1033.90731745,8.59e-05,2]
[406672856,1772061032419,-160.0,8.646e-05,2]
[406672857,1772061032430,-500.0,8.689e-05,2]
[406672858,1772061032440,-500.0,8.689e-05,2]
[406672859,1772061032450,-418.34720331,8.689e-05,2]
[406672860,1772061032460,-500.0,8.689e-05,2]
[406672861,1772061032469,-356.34259773,8.689e-05,2]
[406672862,1772061032482,-98.12707116,8.689e-05,2]
[406672863,1772061032491,-500.0,8.689e-05,2]
[406672864,1772061032501,-500.0,8.689e-05,2]
[406672865,1772061032511,-526.60967846,8.689e-05,2]
[406672866,1772061032520,-500.0,8.689e-05,2]
[406672867,1772061032530,-500.0,8.689e-05,2]
[406672868,1772061032539,-500.0,8.689e-05,2]
[406672869,1772061032549,-166.66,8.737e-05,2]
[406672870,1772061032559,-4518.45,8.767e-05,2]
[406672871,1772061032568,-500.0,8.789e-05,2]
[406672872,1772061032577,-500.0,8.789e-05,2]
[406672873,1772061032587,-500.0,8.789e-05,2]
[406672874,1772061032597,-500.0,8.789e-05,2]
[406672875,1772061032606,-500.18048843,8.789e-05,2]
[406672876,1772061032616,-500.0,8.789e-05,2]
[406672877,1772061032625,-646.14797426,8.789e-05,2]
[406672878,1772061032635,-5927.33,8.811e-05,2]
[406672879,1772061032644,-1417.99467604,8.9e-05,3]
[406672880,1772061032654,-5400.0,9e-05,3]
[406672881,1772061032664,-166.66,9.008e-05,2]
[406672882,1772061032673,-32879.9337,9.09e-05,2]
[406672883,1772061032682,-250.0,9.139e-05,2]
[406672884,1772061032692,-166.66,9.278e-05,2]
[406672885,1772061032701,-166.66,9.549e-05,2]
[406672886,1772061032710,-500.0,0.00010216,2]
[406672887,1772061032719,-1500.0,0.00010413,2]
[406672888,1772061032729,-6563.74,0.0001046,2]
[406672889,1772061032738,-4923.75452128,0.000109,2]
[406672890,1772061032747,-4923.75452124,0.000109,2]
[406672891,1772061032757,-150.0,0.00010959,2]
[406672892,1772061032766,-4923.75452124,0.00011336,2]
[406672893,1772061032775,-4923.75452124,0.00012649,2]
[406672894,1772061032785,-5627.87469091,0.00013,2]
[406672895,1772061032794,-563.76949661,0.00013,15]
[406672896,1772061032803,-7382.11,0.00013699,2]
[406672897,1772061032812,-500.0,0.00013699,2]
[406672898,1772061032822,-500.0,0.00013699,2]
[406672899,1772061032831,-500.0,0.00013699,2]
[406672900,1772061032840,-500.0,0.00013699,2]
[406672901,1772061032850,-500.0,0.00013699,2]
[406672902,1772061032860,-4923.75452124,0.00013962,2]
[406672903,1772061032869,-2288.4601003,0.0001421,7]
[406672904,1772061032878,-1000.0,0.00014247,2]
[406672905,1772061032887,-716.25934348,0.00014247,2]
[406672906,1772061032898,-541.36883601,0.00014247,2]
[406672907,1772061032908,-591.6833327,0.00014247,2]
[406672908,1772061032917,-1000.0,0.00014247,2]
[406672909,1772061032927,-7382.11,0.00014384,2]
[406672910,1772061032936,-500.0,0.00014527,2]
[406672911,1772061032945,-558.2352126,0.00014527,2]
[406672912,1772061032955,-1500.0,0.00014795,2]
[406672913,1772061032964,-1500.0,0.00014795,2]
[406672914,1772061032974,-3037.80044663,0.00014822,2]
[406672915,1772061032983,-160.0,0.00015022,2]
[406672916,1772061032993,-173.91437885,0.00015022,2]
[406672917,1772061033003,-7382.11,0.00015068,2]
[406672918,1772061033012,-10024.89946181,0.0001512,2]
[406672919,1772061033021,-4923.75452124,0.00015275,2]
[406672920,1772061033030,-155.78674714,0.00015342,2]
[406672921,1772061033039,-2000.0,0.00015342,2]
[406672922,1772061033049,-200.0,0.00015686,2]
[406672923,1772061033058,-7382.11,0.00015753,2]
[406672924,1772061033067,-3037.80044663,0.00015848,2]
[406672925,1772061033079,-2500.0,0.0001589,2]
[406672926,1772061033089,-7557.84025373,0.00016116,2]
[406672927,1772061033102,-386.06974627,0.00016116,2]
[406672928,1772061033112,-243.848467,0.00016177,7]
[406672929,1772061033122,-1490.69996826,0.000162,5]
[406672930,1772061033131,-500.0,0.00016356,2]
[406672931,1772061033141,-500.0,0.00016356,2]
[406672932,1772061033150,-1220.6,0.00016438,2]
[406672933,1772061033160,-7382.11,0.00016438,2]
[406672934,1772061033172,-1500.0,0.00016438,2]
[406672935,1772061033182,-1000.0,0.00016438,2]
[406672936,1772061033191,-4722.80416973,0.00016587,2]
[406672950,1772061037910,-200.95035151,0.00016587,2]
[406672951,1772061037920,-1220.6,0.00016712,2]
[406672952,1772061037930,-167.0,0.00016712,2]
[406672953,1772061037940,-16.44964849,0.00016712,2]
[406672954,1772061038034,-1274.14311857,0.00016712,2]
[406672971,1772061040024,-708.40723294,0.00016712,2]
[406672972,1772061040034,-844.0,0.0001672,2]
[406672973,1772061040045,-1219.12,0.00016848,2]
[406672974,1772061040055,-920.0,0.00016848,2]
[406672975,1772061040065,-5982.0,0.00016848,2]
[406672976,1772061040076,-4572.0,0.00016848,2]
[406672977,1772061040088,-2456.0,0.00016848,2]
[406672978,1772061040104,-3037.80044663,0.00016874,2]
[406672979,1772061040116,-1220.6,0.00016986,2]
[406672980,1772061040127,-1000.0,0.00016986,2]
[406672981,1772061040137,-500.0,0.00017,7]
[406672982,1772061040147,-500.0,0.00017,7]
[406672983,1772061040156,-500.0,0.00017,7]
[406672984,1772061040167,-500.0,0.00017,7]
[406672985,1772061040176,-162.78,0.00017,7]
[406672986,1772061040186,-113926.39499395,0.00017,2]
[406672987,1772061040196,-2238.4642,0.00017,2]
[406672988,1772061040205,-844.0,0.0001704,2]
[406672989,1772061040215,-160.0,0.0001704,2]
[406672990,1772061040226,-160.0,0.0001704,2]